bitfinex/quotes_BTCUSD_20250902
["timestamp","ask_amount","ask_price","bid_price","bid_amount"]
[1756820629251,6.054e-05,110630.0,110620.0,0.31319939]
[1756820629463,6.054e-05,110630.0,110620.0,0.32426939]
[1756820629677,6.054e-05,110630.0,110620.0,0.32526939]
[1756820630119,6.054e-05,110630.0,110620.0,0.72526939]
[1756820630362,0.00204054,110630.0,110620.0,0.72019939]
[1756820630573,6.054e-05,110630.0,110620.0,0.72228939]
[1756820630823,6.054e-05,110630.0,110620.0,0.72526939]
[1756820631036,6.054e-05,110630.0,110620.0,0.73639939]
[1756820631254,6.054e-05,110630.0,110620.0,0.71826939]
[1756820631682,6.054e-05,110630.0,110620.0,0.72326939]
[1756820632350,6.054e-05,110630.0,110620.0,0.71826939]
[1756820632774,6.054e-05,110630.0,110620.0,0.72426939]
[1756820633256,6.054e-05,110630.0,110620.0,0.99697511]
[1756820633672,6.054e-05,110630.0,110620.0,1.39697511]
[1756820634741,6.054e-05,110630.0,110620.0,0.32626939]
[1756820634742,1e-08,110630.0,110620.0,0.32626939]
[1756820634948,0.00056915,110700.0,110680.0,0.05]
[1756820635170,0.00056915,110700.0,110690.0,0.27260078]
[1756820635381,0.00103776,110700.0,110690.0,0.27260078]
[1756820635848,0.00103776,110700.0,110690.0,0.27767078]
[1756820636068,0.00304776,110700.0,110690.0,0.27260078]
[1756820636307,0.00103776,110700.0,110690.0,0.27260078]
[1756820636538,0.00403776,110700.0,110690.0,0.27260078]
[1756820636990,0.00388,110730.0,110710.0,0.18065215]
[1756820636991,0.49150394,110720.0,110710.0,0.18065215]
[1756820637219,0.00198,110720.0,110710.0,0.18065215]
[1756820637480,0.00144054,110730.0,110720.0,0.18063583]
[1756820637695,0.00144054,110730.0,110720.0,0.27255182]
[1756820637696,0.67669626,110730.0,110720.0,0.27255182]
[1756820638148,0.67669626,110730.0,110720.0,0.18063583]
[1756820638660,0.67669626,110730.0,110690.0,0.003]
[1756820638661,0.94923177,110730.0,110690.0,0.003]
[1756820638880,0.34,110720.0,110690.0,0.28260344]
[1756820639097,0.34,110720.0,110710.0,0.18065215]
[1756820639098,0.67070572,110720.0,110710.0,0.18065215]
[1756820639295,0.67268572,110720.0,110710.0,0.18065215]
[1756820639512,0.85589155,110720.0,110710.0,0.18065215]
[1756820639744,0.85689155,110720.0,110710.0,0.18065215]
[1756820639961,0.18618583,110720.0,110710.0,0.18065215]
[1756820640184,0.85689155,110720.0,110710.0,0.18065215]
[1756820640617,0.18065215,110710.0,110700.0,0.09191599]
[1756820640833,0.85334787,110710.0,110700.0,0.27258446]
[1756820641050,0.85591787,110710.0,110690.0,0.18068459]
[1756820641272,0.67526572,110710.0,110700.0,0.18066847]
[1756820641499,0.67269572,110710.0,110700.0,0.18066847]
[1756820641941,0.18066847,110700.0,110670.0,0.21724]
[1756820642211,0.18066847,110700.0,110670.0,0.49270115]
[1756820642212,0.67070572,110690.0,110670.0,0.49270115]
[1756820642432,0.67070572,110700.0,110690.0,0.18068479]
[1756820642651,0.85335419,110700.0,110690.0,0.27260078]
[1756820642868,0.85335419,110700.0,110690.0,0.09191599]
[1756820643094,0.85335419,110700.0,110690.0,0.27542857]
[1756820643357,0.00198,110700.0,110690.0,0.27542857]
[1756820643576,0.18063719,110720.0,110700.0,0.18066334]
[1756820643790,0.67070572,110710.0,110700.0,0.27258446]
[1756820644008,0.85406343,110720.0,110700.0,0.27258446]
[1756820644225,0.85406343,110720.0,110710.0,0.09191599]
[1756820644226,0.00014052,110720.0,110710.0,0.09191599]
[1756820644442,0.00014052,110720.0,110710.0,0.27256814]
[1756820644652,0.18275635,110720.0,110710.0,0.27256814]
[1756820644866,0.85346207,110720.0,110710.0,0.27256814]
[1756820645079,0.18065215,110710.0,110690.0,0.18068479]
[1756820645285,0.85135787,110710.0,110690.0,0.27259941]
[1756820645500,0.61189156,110700.0,110690.0,0.27260078]
[1756820645931,0.00014052,110720.0,110690.0,0.36025132]
[1756820646158,0.00014052,110720.0,110710.0,0.27256814]
[1756820646372,0.42937361,110720.0,110710.0,0.49191599]
[1756820646588,0.00014052,110720.0,110710.0,0.67256814]
[1756820647014,0.00014052,110720.0,110710.0,0.27256814]
[1756820647260,0.00014052,110720.0,110710.0,0.27763814]
[1756820648380,0.42937361,110720.0,110710.0,0.27256814]
[1756820648848,0.18275635,110720.0,110710.0,0.27256814]
[1756820649077,0.18077635,110720.0,110710.0,0.18065215]
[1756820649322,0.18077635,110720.0,110710.0,0.09391599]
[1756820649538,0.61198944,110720.0,110710.0,0.09291599]
[1756820649767,0.43135361,110720.0,110710.0,0.27356814]
[1756820650260,0.43235361,110720.0,110710.0,0.27356814]
[1756820650721,0.43037361,110720.0,110710.0,0.27356814]
[1756820650951,0.00014052,110720.0,110710.0,0.27356814]
[1756820651453,0.00014052,110720.0,110710.0,0.27775814]
[1756820651686,0.61199052,110720.0,110700.0,0.1806682]
[1756820651914,0.61199052,110720.0,110710.0,0.002]
[1756820651915,0.61456052,110720.0,110710.0,0.002]
[1756820652149,0.43135361,110720.0,110710.0,0.002]
[1756820652369,0.00212052,110720.0,110710.0,0.18165215]
[1756820652584,0.00014052,110720.0,110710.0,0.18165215]
[1756820652798,0.61199944,110720.0,110710.0,0.001]
[1756820653006,0.00014052,110720.0,110710.0,0.27356814]
[1756820653224,0.61198944,110720.0,110710.0,0.09491599]
[1756820653447,0.61198944,110720.0,110710.0,0.18365215]
[1756820653915,0.61198944,110720.0,110710.0,0.18265215]
[1756820654143,0.61198944,110720.0,110710.0,0.002]
[1756820654394,0.61455944,110720.0,110710.0,0.002]
[1756820654840,0.61455944,110720.0,110710.0,0.001]
[1756820655076,0.61455944,110720.0,110710.0,0.003]
[1756820655290,0.61198944,110720.0,110710.0,0.003]
[1756820655724,0.61455944,110720.0,110710.0,0.002]
[1756820655967,0.00903505,110680.0,110650.0,0.00319]
[1756820656200,0.61898072,110680.0,110660.0,0.09191599]
[1756820656430,0.60995053,110670.0,110660.0,0.00282789]
[1756820656630,0.61193053,110670.0,110660.0,0.00282789]
[1756820657071,0.1807507,110650.0,110630.0,0.47463823]
[1756820657288,0.1807507,110650.0,110640.0,0.09191599]
[1756820657515,0.6119732,110650.0,110640.0,0.00282881]
[1756820657799,1.38377629,110650.0,110640.0,0.00282881]
[1756820658013,0.9545432,110650.0,110640.0,0.00282881]
[1756820658229,1.38377629,110650.0,110640.0,0.00278881]
[1756820658963,1.47569228,110650.0,110640.0,0.00278881]
[1756820659212,1.54936988,110650.0,110640.0,0.00278881]
[1756820659466,0.18079849,110630.0,110610.0,0.18081004]
[1756820659687,0.61003222,110620.0,110610.0,0.09191599]
[1756820659911,0.61201222,110620.0,110600.0,0.25437356]
[1756820660156,0.61004856,110610.0,110600.0,0.34947955]
[1756820660381,0.61004856,110610.0,110600.0,0.27274781]
[1756820660591,0.61004856,110610.0,110600.0,0.09191599]
[1756820660806,0.61004856,110610.0,110600.0,0.27321642]
[1756820661015,0.61004856,110610.0,110600.0,0.0923846]
[1756820661240,0.61004856,110610.0,110600.0,0.00046861]
[1756820661241,1.04126165,110610.0,110600.0,0.00046861]
[1756820661453,0.42923309,110640.0,110600.0,0.28744801]
[1756820661666,0.42923309,110640.0,110610.0,0.27592057]
[1756820661880,0.42923309,110620.0,110610.0,0.28177134]
[1756820662096,0.42923309,110620.0,110610.0,0.27473146]
[1756820662309,0.60999953,110640.0,110630.0,0.18078278]
[1756820662529,0.61000093,110640.0,110630.0,0.09191599]
[1756820662952,0.18079267,110630.0,110610.0,0.18500547]
[1756820663169,0.52079913,110620.0,110610.0,0.001]
[1756820663383,0.52278913,110620.0,110610.0,0.001]
[1756820663601,0.18081547,110610.0,110600.0,0.00046861]
[1756820663841,1.03928165,110610.0,110600.0,0.00046861]
[1756820664072,1.04127165,110610.0,110600.0,0.00046861]
[1756820664734,1.38127165,110610.0,110600.0,0.00046861]
[1756820665177,1.38383165,110610.0,110600.0,0.00046861]
[1756820665471,1.38127165,110610.0,110600.0,0.00046861]
[1756820665676,1.38127165,110610.0,110600.0,0.00146861]
[1756820665898,1.38383165,110610.0,110600.0,0.00146861]
[1756820666122,1.46626325,110610.0,110600.0,0.00146861]
[1756820666369,1.53814764,110610.0,110600.0,0.00146861]
[1756820666600,1.65908646,110610.0,110600.0,1e-08]
[1756820667062,1.58814764,110610.0,110600.0,1e-08]
[1756820667282,1.47574764,110610.0,110600.0,1e-08]
[1756820667512,1.47674764,110610.0,110600.0,1e-08]
[1756820667750,1.47574764,110610.0,110600.0,1e-08]
[1756820668221,1.47974764,110610.0,110600.0,1e-08]
[1756820668692,1.47718764,110610.0,110600.0,1e-08]
[1756820669179,1.04328165,110610.0,110590.0,0.18403673]
[1756820669396,1.039298,110600.0,110590.0,0.18403673]
[1756820669621,0.85846618,110600.0,110590.0,0.18603673]
[1756820669832,0.85846618,110600.0,110590.0,0.27795272]
[1756820670282,0.85846618,110600.0,110590.0,0.27795416]
[1756820670717,0.001,110610.0,110590.0,0.27795416]
[1756820670938,0.0141523,110660.0,110640.0,0.18075183]
[1756820671162,0.18072021,110670.0,110650.0,0.1859397]
[1756820671602,0.18073377,110660.0,110640.0,0.27266782]
[1756820671834,0.18073377,110660.0,110650.0,0.18075011]
[1756820672054,0.18975608,110670.0,110650.0,0.18394011]
[1756820672277,0.34,110680.0,110670.0,0.18071744]
[1756820672501,0.34,110680.0,110660.0,0.18073377]
[1756820672502,1.03930783,110680.0,110660.0,0.18392377]
[1756820672718,0.60995053,110670.0,110660.0,0.00319]
[1756820672939,0.60995053,110670.0,110660.0,0.18392377]
[1756820673201,0.42923309,110670.0,110660.0,0.18592377]
[1756820673423,0.18071744,110670.0,110660.0,0.18592377]
[1756820673639,0.60995053,110670.0,110660.0,0.18592377]
[1756820674077,0.42923309,110670.0,110660.0,0.18592377]
[1756820674544,0.18084218,110680.0,110670.0,0.18071744]
[1756820674760,1.03930836,110680.0,110660.0,0.18073377]
[1756820674976,0.18084165,110680.0,110670.0,0.18071744]
[1756820675196,0.18084165,110680.0,110660.0,0.18492377]
[1756820675842,0.18084165,110680.0,110660.0,0.18592377]
[1756820676069,0.00014053,110680.0,110670.0,0.18271744]
[1756820676287,0.00014053,110680.0,110670.0,0.27782343]
[1756820676288,0.42937362,110680.0,110670.0,0.27782343]
[1756820676499,0.42937362,110680.0,110670.0,0.27463343]
[1756820677168,0.00014053,110680.0,110670.0,0.27782343]
[1756820677632,0.61007474,110680.0,110670.0,0.27882343]
[1756820677845,0.18084165,110680.0,110670.0,0.27882343]
[1756820678069,0.61007474,110680.0,110670.0,0.27563343]
[1756820678526,0.61007474,110680.0,110670.0,0.003]
[1756820678745,1.04136783,110680.0,110670.0,0.001]
[1756820678970,0.18983005,110720.0,110680.0,0.18970854]
[1756820678971,0.18063703,110720.0,110680.0,0.18970854]
[1756820679200,0.42923309,110700.0,110690.0,0.18389847]
[1756820679648,0.42923309,110700.0,110690.0,0.18605847]
[1756820680093,0.61937096,110720.0,110700.0,0.180668]
[1756820680308,0.61133917,110720.0,110710.0,0.18065215]
[1756820680520,0.61331917,110720.0,110700.0,0.180668]
[1756820680746,0.69300455,110720.0,110700.0,0.180668]
[1756820681016,0.18066872,110700.0,110680.0,0.1807009]
[1756820681248,0.60988546,110710.0,110690.0,0.27876078]
[1756820681477,0.18066162,110710.0,110690.0,0.28199078]
[1756820681697,0.19013787,110720.0,110700.0,0.18389847]
[1756820681698,0.18110608,110720.0,110700.0,0.18389847]
[1756820681934,0.61186524,110710.0,110700.0,0.001]
[1756820682182,0.18066847,110700.0,110690.0,0.004]
[1756820682404,0.60990156,110700.0,110690.0,0.004]
[1756820682635,0.61189156,110700.0,110690.0,0.004]
[1756820682861,0.18069729,110690.0,110670.0,0.39795693]
[1756820683092,0.18069729,110690.0,110680.0,0.27261711]
[1756820683319,0.18066847,110700.0,110680.0,0.27800711]
[1756820683555,0.18068479,110690.0,110680.0,0.27800711]
[1756820684227,0.60990156,110700.0,110680.0,0.27800711]
[1756820684732,0.61891784,110710.0,110690.0,0.00323]
[1756820684976,0.18264847,110700.0,110680.0,0.09191599]
[1756820685208,0.18071744,110670.0,110650.0,0.18397985]
[1756820685422,0.18071744,110670.0,110660.0,0.27803976]
[1756820685877,0.61895479,110690.0,110660.0,0.27803976]
[1756820686124,0.18070202,110680.0,110670.0,0.00323]
[1756820686358,0.18071744,110670.0,110660.0,0.09191599]
[1756820686582,0.60995053,110670.0,110660.0,0.09205652]
[1756820687027,0.61193053,110670.0,110660.0,0.00014053]
[1756820687919,0.60993511,110680.0,110660.0,0.1872643]
[1756820688141,0.18070202,110680.0,110660.0,0.27918029]
[1756820688373,0.18070144,110680.0,110670.0,0.18071502]
[1756820688653,0.001,110670.0,110660.0,0.27379029]
[1756820688883,0.60993453,110680.0,110660.0,0.27379029]
[1756820689106,0.18071744,110670.0,110660.0,0.27379029]
[1756820689759,0.18071744,110670.0,110660.0,0.27279029]
[1756820690267,0.18071744,110670.0,110660.0,0.27818029]
[1756820690506,0.18068599,110690.0,110670.0,0.18071744]
[1756820690734,0.18068599,110690.0,110670.0,0.27586201]
[1756820690735,0.18070112,110680.0,110670.0,0.27586201]
[1756820690952,0.18070112,110680.0,110670.0,0.27263343]
[1756820691172,0.60993421,110680.0,110670.0,0.09191599]
[1756820691398,0.18068599,110690.0,110670.0,0.09191599]
[1756820691399,0.19606319,110730.0,110690.0,0.00903423]
[1756820691630,0.42923309,110720.0,110700.0,0.09191599]
[1756820691850,0.42923309,110710.0,110690.0,0.18388504]
[1756820692072,0.42923309,110710.0,110700.0,0.18066847]
[1756820692294,0.60988524,110710.0,110700.0,0.18066847]
[1756820692553,0.42923309,110710.0,110700.0,0.18066847]
[1756820692772,0.60988524,110710.0,110700.0,0.18066847]
[1756820692996,0.61035347,110710.0,110700.0,0.18066847]
[1756820693218,0.61035347,110710.0,110690.0,0.18388504]
[1756820693430,0.61035347,110710.0,110700.0,0.18066847]
[1756820693703,0.61035347,110710.0,110690.0,0.18065504]
[1756820693704,0.61233347,110710.0,110690.0,0.18065504]
[1756820693933,0.60990432,110700.0,110670.0,0.18070112]
[1756820694147,0.60991788,110690.0,110680.0,0.27261703]
[1756820694566,0.60991788,110690.0,110680.0,0.27261711]
[1756820695804,0.60991788,110690.0,110680.0,0.09191599]
[1756820696009,0.60991788,110690.0,110680.0,0.27261711]
[1756820696845,0.18068479,110690.0,110680.0,0.27261711]
[1756820697049,0.60991788,110690.0,110680.0,0.27361711]
[1756820697252,0.60991788,110690.0,110680.0,0.27577711]
[1756820697465,0.60991788,110690.0,110680.0,0.27800711]
[1756820697810,0.60991788,110690.0,110680.0,0.27900711]
[1756820698020,0.18068479,110690.0,110680.0,0.27900711]
[1756820698222,0.60991788,110690.0,110680.0,0.27577711]
[1756820698437,0.60991788,110690.0,110680.0,0.27361711]
[1756820698662,0.60991788,110690.0,110680.0,0.09291599]
[1756820698913,0.60991788,110690.0,110680.0,0.27261711]
[1756820699315,0.60991788,110690.0,110670.0,0.1839367]
[1756820699525,0.60993421,110680.0,110670.0,0.09191599]
[1756820699748,0.18973617,110680.0,110660.0,0.00323]
[1756820699964,0.60995053,110670.0,110660.0,0.2758792]
[1756820700219,0.61193053,110670.0,110640.0,0.18390609]
[1756820700452,0.18078612,110650.0,110600.0,0.1241151]
[1756820700691,0.18078612,110650.0,110610.0,0.09191599]
[1756820700692,0.18081353,110620.0,110610.0,0.09191599]
[1756820700917,0.42923309,110620.0,110610.0,0.27273146]
[1756820701193,0.42923309,110630.0,110620.0,0.18079772]
[1756820701398,0.42923309,110630.0,110610.0,0.00014053]
[1756820701399,0.52079913,110620.0,110610.0,0.00014053]
[1756820701632,0.18277731,110630.0,110610.0,0.00014053]
[1756820701862,0.18079913,110620.0,110610.0,0.00014053]
[1756820702079,0.61003222,110620.0,110610.0,0.00014053]
[1756820702299,0.18079731,110630.0,110610.0,0.00014053]
[1756820702520,0.61003222,110620.0,110610.0,0.00014053]
[1756820702816,0.18079731,110630.0,110610.0,0.27610199]
[1756820703039,0.18079731,110630.0,110610.0,0.09205652]
[1756820703040,0.950016,110630.0,110610.0,0.09205652]
[1756820703264,0.61003222,110620.0,110610.0,0.00014053]
[1756820703482,0.42923309,110620.0,110610.0,0.00014053]
[1756820703704,0.52076713,110640.0,110620.0,0.18079785]
[1756820703922,0.61000022,110640.0,110630.0,0.27269877]
[1756820704174,0.30153686,110670.0,110640.0,0.18075817]
[1756820704392,0.6210007,110650.0,110620.0,0.18402785]
[1756820704613,0.61001587,110630.0,110620.0,0.09191599]
[1756820704828,0.18078278,110630.0,110610.0,0.18195398]
[1756820705067,0.61904143,110640.0,110620.0,0.18079913]
[1756820705298,0.61904143,110640.0,110620.0,0.09191599]
[1756820705299,0.61001587,110630.0,110620.0,0.09191599]
[1756820705500,0.18079913,110620.0,110610.0,0.18195042]
[1756820705725,0.8497186,110630.0,110610.0,0.27709641]
[1756820705968,0.18978761,110650.0,110630.0,0.18078215]
[1756820706179,0.66893582,110640.0,110620.0,0.18402913]
[1756820706396,0.84970226,110640.0,110630.0,0.18078278]
[1756820706611,0.85070226,110640.0,110620.0,0.27594512]
[1756820707070,0.18978761,110650.0,110630.0,0.00216]
[1756820707291,0.66893582,110640.0,110630.0,0.18294132]
[1756820707515,0.34,110650.0,110630.0,0.18617132]
[1756820707720,0.66893582,110640.0,110630.0,0.27808731]
[1756820708002,0.66893582,110660.0,110650.0,0.18075005]
[1756820708224,0.68308505,110680.0,110670.0,0.18071744]
[1756820708660,0.01414923,110680.0,110670.0,0.27802343]
[1756820708909,0.84962061,110690.0,110680.0,0.18070112]
[1756820709139,0.66893582,110700.0,110690.0,0.18068479]
[1756820709372,0.66893582,110710.0,110700.0,0.18066674]
[1756820709585,0.32106684,110730.0,110700.0,0.27758273]
[1756820709586,0.28869684,110730.0,110700.0,0.27758273]
[1756820709815,0.18063629,110720.0,110710.0,0.27256814]
[1756820710043,0.68831906,110720.0,110710.0,0.27256814]
[1756820710488,0.00176823,110730.0,110720.0,0.18063583]
[1756820710721,0.00176823,110730.0,110720.0,0.27755182]
[1756820711170,0.00176823,110730.0,110720.0,0.3189028]
[1756820711387,0.00176823,110730.0,110720.0,0.27755182]
[1756820712082,0.00176823,110730.0,110720.0,0.27548182]
[1756820712509,0.00376823,110730.0,110720.0,1.02638646]
[1756820712732,0.00376823,110730.0,110720.0,1.05526529]
[1756820712950,1e-08,110730.0,110720.0,1.15526529]
[1756820713167,1e-08,110740.0,110730.0,0.28043717]
[1756820713378,8.46e-05,110740.0,110730.0,1.10324898]
[1756820713816,8.46e-05,110740.0,110730.0,1.01534015]
[1756820714036,8.46e-05,110740.0,110730.0,0.96534015]
[1756820714506,8.46e-05,110740.0,110730.0,0.96741015]
[1756820714951,8.46e-05,110740.0,110730.0,1.07644015]
[1756820715177,1e-08,110740.0,110730.0,1.12644015]
[1756820715413,0.00079385,110760.0,110750.0,0.25152572]
[1756820715674,0.00079385,110760.0,110750.0,1.22953753]
[1756820715918,0.00079385,110760.0,110750.0,1.34356753]
[1756820716130,0.03248702,110810.0,110800.0,0.18050541]
[1756820716359,0.0002,110830.0,110820.0,0.18037288]
[1756820716586,0.0002,110830.0,110820.0,0.18330288]
[1756820716812,0.00034047,110830.0,110820.0,0.27521887]
[1756820717065,0.00034047,110830.0,110820.0,0.27228887]
[1756820717286,0.00034047,110830.0,110820.0,0.09191599]
[1756820717287,0.66927629,110830.0,110820.0,0.09191599]
[1756820717539,0.67185629,110830.0,110810.0,0.18048466]
[1756820717793,0.67185629,110830.0,110820.0,0.18047283]
[1756820717794,0.66927629,110830.0,110820.0,0.18047283]
[1756820718028,0.84973284,110830.0,110820.0,0.09191599]
[1756820718270,0.18071702,110830.0,110820.0,0.06944]
[1756820718510,0.66919629,110830.0,110820.0,0.06944]
[1756820718733,0.00026047,110830.0,110820.0,0.34182882]
[1756820718949,0.00026047,110830.0,110820.0,0.34282882]
[1756820719388,0.00026047,110830.0,110820.0,0.35898036]
[1756820719631,0.84965284,110830.0,110820.0,0.17850753]
[1756820719848,0.00026047,110830.0,110820.0,0.36191036]
[1756820720059,0.00426047,110830.0,110820.0,0.36198036]
[1756820720274,0.00426047,110830.0,110820.0,0.18150753]
[1756820720275,0.85365284,110830.0,110820.0,0.18150753]
[1756820720484,0.85623284,110830.0,110820.0,0.08959154]
[1756820720724,1.19623284,110830.0,110820.0,0.08959154]
[1756820720944,1.19623284,110830.0,110820.0,0.08859154]
[1756820721379,1.19823284,110830.0,110820.0,0.07244]
[1756820721603,1.19823284,110830.0,110820.0,0.003]
[1756820721604,1.37255779,110830.0,110820.0,0.003]
[1756820721836,0.68175301,110830.0,110820.0,0.003]
[1756820722061,0.18048671,110820.0,110800.0,0.06944]
[1756820722299,0.18048671,110820.0,110810.0,0.18048912]
[1756820722525,0.18048671,110820.0,110800.0,0.16135599]
[1756820722526,1.18942253,110820.0,110800.0,0.16135599]
[1756820722763,1.18941297,110820.0,110810.0,0.18048912]
[1756820722984,0.18048912,110810.0,110800.0,0.06944]
[1756820723233,1.28392093,110810.0,110800.0,0.06944]
[1756820723469,0.18053078,110790.0,110780.0,0.06944]
[1756820723690,0.8494666,110790.0,110780.0,0.16135599]
[1756820724336,1.1920466,110790.0,110780.0,0.06944]
[1756820724556,0.52311078,110790.0,110780.0,0.06944]
[1756820724760,1.192187,110790.0,110780.0,0.06944]
[1756820724962,0.52067118,110790.0,110780.0,0.06944]
[1756820725184,0.66907622,110790.0,110780.0,0.34482399]
[1756820725409,0.66907622,110790.0,110780.0,0.34189399]
[1756820725617,0.0001404,110790.0,110780.0,0.06944]
[1756820725840,0.67007622,110790.0,110780.0,0.34189399]
[1756820726080,0.85059792,110790.0,110780.0,0.16135599]
[1756820726509,0.66907622,110790.0,110780.0,0.34189399]
[1756820726722,0.0001404,110790.0,110780.0,0.34189399]
[1756820726933,0.67107622,110790.0,110780.0,0.34189399]
[1756820727137,0.67107622,110790.0,110780.0,0.16135599]
[1756820727138,0.85159792,110790.0,110780.0,0.16135599]
[1756820727374,0.85159792,110790.0,110780.0,0.06944]
[1756820727792,0.1826621,110790.0,110780.0,0.06944]
[1756820727990,0.67107622,110790.0,110780.0,0.06944]
[1756820728210,0.0021404,110790.0,110780.0,0.34189399]
[1756820728716,0.67107622,110790.0,110780.0,0.34189399]
[1756820728929,0.66907622,110790.0,110780.0,0.34189399]
[1756820729134,0.0001404,110790.0,110780.0,0.34189399]
[1756820729331,0.0011404,110790.0,110780.0,0.34482399]
[1756820729948,0.0001404,110790.0,110780.0,0.34482399]
[1756820730369,0.0001404,110790.0,110780.0,1.01475981]
[1756820730581,0.00012,110830.0,110820.0,0.18047283]
[1756820730800,0.00026034,110830.0,110820.0,0.34475882]
[1756820731440,0.84965271,110830.0,110820.0,0.34182882]
[1756820731649,0.18071689,110830.0,110820.0,0.16135599]
[1756820732082,0.00026034,110830.0,110820.0,0.34182882]
[1756820732285,0.00026034,110830.0,110820.0,0.34475882]
[1756820732921,0.00026034,110830.0,110820.0,0.56271882]
[1756820733124,0.00026034,110830.0,110820.0,0.56371882]
[1756820733331,0.00026034,110830.0,110820.0,0.56271882]
[1756820733556,0.00026034,110830.0,110820.0,0.55878882]
[1756820733969,0.00026034,110830.0,110820.0,0.56171882]
[1756820734587,0.00026034,110830.0,110820.0,0.43111882]
[1756820734813,0.00026034,110830.0,110820.0,0.52303481]
[1756820735239,0.66919616,110830.0,110820.0,0.34256198]
[1756820735455,0.00026034,110830.0,110820.0,0.33963198]
[1756820735653,0.00026034,110830.0,110820.0,0.52410481]
[1756820735996,0.00026034,110830.0,110820.0,0.52303481]
[1756820736195,0.00026034,110830.0,110820.0,0.53616121]
[1756820736409,0.84965271,110830.0,110820.0,0.26877239]
[1756820736619,0.84965271,110830.0,110820.0,0.0874564]
[1756820736828,0.85223271,110830.0,110820.0,0.0874564]
[1756820737022,0.00026034,110830.0,110820.0,0.0864564]
[1756820737183,0.84965271,110830.0,110820.0,0.26692923]
[1756820737396,0.00026034,110830.0,110820.0,0.17937239]
[1756820737602,0.84965271,110830.0,110820.0,0.26792923]
[1756820737800,0.00026034,110830.0,110820.0,0.35984522]
[1756820738032,0.66919616,110830.0,110820.0,0.35984522]
[1756820738236,0.00026034,110830.0,110820.0,0.35984522]
[1756820738440,0.18071689,110830.0,110820.0,0.0864564]
[1756820738648,0.00026034,110830.0,110820.0,0.26692923]
[1756820738849,0.00026034,110830.0,110820.0,0.35884522]
[1756820739264,0.84965271,110830.0,110820.0,0.35784522]
[1756820739612,0.18284689,110830.0,110820.0,0.0854564]
[1756820739836,0.84965271,110830.0,110820.0,0.26592923]
[1756820740050,0.00026034,110830.0,110820.0,0.26592923]
[1756820740260,0.00026034,110830.0,110820.0,0.27097722]
[1756820740261,0.66919616,110830.0,110820.0,0.27097722]
[1756820740470,0.66919616,110830.0,110820.0,0.26605722]
[1756820740471,0.00026034,110830.0,110820.0,0.26605722]
[1756820740679,0.00026034,110830.0,110820.0,0.27097722]
[1756820740884,0.00026034,110830.0,110820.0,0.26705722]
[1756820741147,0.00026034,110830.0,110820.0,0.36389321]
[1756820742017,0.0002,110840.0,110830.0,0.18045655]
[1756820742251,1e-08,110840.0,110830.0,0.98138157]
[1756820742469,1e-08,110840.0,110830.0,0.33111063]
[1756820742680,1e-08,110840.0,110830.0,1.02849801]
[1756820742906,1e-08,110840.0,110830.0,1.23004937]
[1756820743119,0.00124917,110880.0,110870.0,0.18039144]
[1756820743348,0.00171718,110880.0,110870.0,0.75305182]
[1756820743565,0.00171718,110880.0,110870.0,0.80310342]
[1756820743779,0.50143409,110900.0,110890.0,0.18035891]
[1756820743998,0.50143409,110900.0,110890.0,1.44682912]
[1756820744217,0.5015744,110900.0,110890.0,1.58808666]
[1756820744435,0.01420008,110920.0,110910.0,0.20108512]
[1756820744652,0.01,110930.0,110920.0,0.20124895]
[1756820744871,0.01,110930.0,110920.0,0.70454933]
[1756820745112,0.01,110930.0,110920.0,0.70741933]
[1756820745327,0.00580069,110940.0,110930.0,0.18029387]
[1756820745572,0.00580069,110940.0,110930.0,1.03121889]
[1756820745795,0.0002,110960.0,110950.0,0.18026137]
[1756820746021,0.0002,110960.0,110950.0,0.35776175]
[1756820746244,0.00034026,110960.0,110950.0,0.37932551]
[1756820746469,0.00034026,110960.0,110950.0,1.22866639]
[1756820746732,0.00034026,110960.0,110950.0,1.24728015]
[1756820746938,0.00034026,110960.0,110950.0,0.95732551]
[1756820747229,0.00034026,110960.0,110950.0,0.95724551]
[1756820747462,0.00135868,110990.0,110980.0,0.18021265]
[1756820747692,0.00135868,110990.0,110980.0,0.53451303]
[1756820747921,0.00135868,110990.0,110980.0,1.22733767]
[1756820748154,0.15992778,111000.0,110990.0,0.20103527]
[1756820748422,0.10040275,111000.0,110990.0,0.44541966]
[1756820748657,0.08107334,111020.0,111000.0,0.23018018]
[1756820748879,0.08107334,111020.0,111010.0,0.78643993]
[1756820748880,0.03014796,111020.0,111010.0,0.78643993]
[1756820749100,0.03028839,111020.0,111010.0,0.83461488]
[1756820749327,0.02126336,111020.0,111010.0,0.60510453]
[1756820749548,0.0005,111040.0,111030.0,0.18013149]
[1756820749772,0.0005,111040.0,111030.0,0.46715187]
[1756820750020,0.0005,111040.0,111030.0,0.4908303]
[1756820750248,0.0005,111040.0,111030.0,0.10788914]
[1756820750460,0.0005,111040.0,111030.0,0.46678063]
[1756820750677,0.0005,111040.0,111030.0,0.28802063]
[1756820750889,0.0005,111040.0,111030.0,0.47082063]
[1756820751336,0.0005,111040.0,111030.0,0.27467599]
[1756820751548,0.0005,111040.0,111030.0,0.45480748]
[1756820752196,0.0005,111040.0,111030.0,0.49466945]
[1756820752458,0.0005,111040.0,111030.0,0.50493535]
[1756820752686,0.0005,111040.0,111030.0,0.4718263]
[1756820753158,0.0005,111040.0,111030.0,0.4747763]
[1756820753398,0.0005,111040.0,111030.0,0.55043067]
[1756820753646,0.0005,111040.0,111030.0,0.3489363]
[1756820753915,0.0005,111040.0,111030.0,0.31779667]
[1756820754167,0.0005,111040.0,111030.0,0.49347667]
[1756820754362,0.66943582,111040.0,111030.0,0.49040667]
[1756820754647,0.0005,111040.0,111030.0,0.13971518]
[1756820754896,0.66943582,111040.0,111030.0,0.50148667]
[1756820755091,0.84955109,111040.0,111030.0,0.28147599]
[1756820755397,0.84955109,111040.0,111030.0,0.011]
[1756820755398,1.19213109,111040.0,111030.0,0.011]
[1756820755602,1.19213109,111040.0,111030.0,0.003]
[1756820755603,1.97760672,111040.0,111030.0,0.003]
[1756820755804,0.63973508,111040.0,111030.0,0.003]
[1756820756014,0.18018018,111000.0,110990.0,0.14286631]
[1756820756226,0.84909976,111010.0,110990.0,0.59371872]
[1756820756459,0.18016394,111010.0,111000.0,0.09191599]
[1756820757093,0.52918511,111020.0,111000.0,0.27071599]
[1756820757309,0.52918511,111020.0,111000.0,0.45089538]
[1756820757310,0.18014793,111020.0,111000.0,0.45089538]
[1756820757534,0.18962103,111040.0,111020.0,0.18014748]
[1756820757741,0.84906731,111030.0,111020.0,0.16119599]
[1756820757950,0.84906731,111030.0,111020.0,0.34003599]
[1756820758162,0.84806731,111030.0,111020.0,0.34003599]
[1756820758368,0.84806731,111030.0,111020.0,0.52018371]
[1756820758627,0.17913149,111030.0,111020.0,0.52018371]
[1756820758858,0.52962103,111040.0,111020.0,0.52018371]
[1756820758859,0.18061527,111040.0,111020.0,0.52018371]
[1756820759077,0.66893582,111030.0,111020.0,0.16119599]
[1756820759483,0.66893582,111030.0,111020.0,0.52014371]